fUSD/lending_fUSD_20260613
["ID","MTS","AMOUNT","RATE_DAILY","PERIOD"]
[424973857,1781364654000,-160.13511027,0.00023152,2]
[424973844,1781364654000,-1842.0,0.00023,2]
[424973854,1781364654000,-225.18697532,0.00023152,2]
[424973852,1781364654000,-225.18697532,0.00023152,2]
[424973856,1781364654000,-155.65257856,0.00023152,2]
[424973855,1781364654000,-225.18697532,0.00023152,2]
[424973860,1781364654000,-160.0,0.00023287,2]
[424973859,1781364654000,-150.0,0.0002326,21]
[424973863,1781364654000,-6206.9,0.00023331,7]
[424973861,1781364654000,-150.0,0.00023288,2]
[424973862,1781364654000,-2884.75459676,0.00023314,2]
[424973864,1781364654000,-1275.0,0.0002339,2]
[424973813,1781364654000,-217.15233878,0.00022604,2]
[424973866,1781364654000,-1228.0,0.0002339,2]
[424973853,1781364654000,-151.0,0.00023152,2]
[424973839,1781364654000,-2680.0,0.00023,2]
[424973865,1781364654000,-383.0,0.0002339,2]
[424973840,1781364654000,-459.0,0.00023,2]
[424973841,1781364654000,-284.0,0.00023,2]
[424973817,1781364654000,-160.13511027,0.00022604,2]
[424973816,1781364654000,-155.65257845,0.00022604,2]
[424973818,1781364654000,-771.63317929,0.00022606,2]
[424973820,1781364654000,-151.0,0.00022642,2]
[424973819,1781364654000,-151.0,0.00022606,2]
[424973822,1781364654000,-2781.82699784,0.00022766,2]
[424973825,1781364654000,-194.37248128,0.00022945,2]
[424973823,1781364654000,-831.0,0.00022908,2]
[424973821,1781364654000,-334.19562712,0.00022766,2]
[424973826,1781364654000,-180.17301814,0.00022992,2]
[424973824,1781364654000,-501.0,0.00022932,6]
[424973814,1781364654000,-487.97646921,0.00022604,2]
[424973828,1781364654000,-150.84439283,0.00022992,2]
[424973834,1781364654000,-218.0,0.00023,2]
[424973838,1781364654000,-1257.0,0.00023,2]
[424973831,1781364654000,-1017.51131727,0.00023,2]
[424973830,1781364654000,-285.0,0.00022997,2]
[424973829,1781364654000,-354.16805249,0.00022992,2]
[424973837,1781364654000,-1000.0,0.00023,12]
[424973836,1781364654000,-344.0,0.00023,2]
[424973833,1781364654000,-755.0,0.00023,2]
[424973835,1781364654000,-437.0,0.00023,2]
[424973832,1781364654000,-1943.828552,0.00023,2]
[424973827,1781364654000,-180.17301812,0.00022992,2]
[424973898,1781364655000,-459.0,0.00024,2]
[424973893,1781364655000,-344.0,0.00024,2]
[424973895,1781364655000,-1257.0,0.00024,2]
[424973896,1781364655000,-2680.0,0.00024,2]
[424973900,1781364655000,-1047.0,0.00024,2]
[424973902,1781364655000,-1842.0,0.00024,2]
[424973901,1781364655000,-386.0,0.00024,2]
[424973897,1781364655000,-500.0,0.00024,2]
[424973899,1781364655000,-284.0,0.00024,2]
[424973894,1781364655000,-1000.0,0.00024,12]
[424973908,1781364655000,-177.26762146,0.00024248,2]
[424973906,1781364655000,-150.0,0.00024164,2]
[424973905,1781364655000,-200.0,0.00024157,2]
[424973910,1781364655000,-196.05643121,0.00024248,2]
[424973907,1781364655000,-284.01862642,0.00024248,2]
[424973909,1781364655000,-151.0,0.00024248,2]
[424973911,1781364655000,-151.0,0.00024248,2]
[424973912,1781364655000,-242.15909246,0.00024248,2]
[424973904,1781364655000,-240.0,0.00024142,2]
[424973913,1781364655000,-242.15909246,0.00024248,2]
[424973915,1781364655000,-1552.4,0.00024324,2]
[424973889,1781364655000,-1943.828552,0.00024,2]
[424973903,1781364655000,-362.0,0.00024,2]
[424973892,1781364655000,-437.0,0.00024,2]
[424973877,1781364655000,-233.5188934,0.000237,2]
[424973884,1781364655000,-180.0,0.00023827,2]
[424973914,1781364655000,-160.13511027,0.00024248,2]
[424973870,1781364655000,-412.28607828,0.00023464,2]
[424973869,1781364655000,-217.15233878,0.00023425,2]
[424973868,1781364655000,-3644.0,0.0002339,2]
[424973867,1781364655000,-1359.0,0.0002339,2]
[424973871,1781364655000,-831.0,0.00023593,2]
[424973872,1781364655000,-639.26,0.000236,7]
[424973873,1781364655000,-501.0,0.00023636,7]
[424973878,1781364655000,-151.0,0.000237,2]
[424973876,1781364655000,-151.0,0.000237,2]
[424973891,1781364655000,-218.0,0.00024,2]
[424973879,1781364655000,-233.5188934,0.000237,2]
[424973874,1781364655000,-194.72792766,0.000237,2]
[424973880,1781364655000,-233.5188934,0.000237,2]
[424973881,1781364655000,-160.13511027,0.000237,2]
[424973883,1781364655000,-500.0,0.00023782,7]
[424973882,1781364655000,-263.94580706,0.00023738,2]
[424973890,1781364655000,-755.0,0.00024,2]
[424973886,1781364655000,-2000.0,0.00023848,2]
[424973885,1781364655000,-2000.0,0.00023848,2]
[424973888,1781364655000,-2991.49051684,0.00023862,2]
[424973887,1781364655000,-904.0,0.00023848,2]
[424973875,1781364655000,-284.01862642,0.000237,2]
[424973918,1781364655000,-168.56113,0.00024324,2]
[424973922,1781364655000,-1000.0,0.00024658,2]
[424973919,1781364655000,-168.56113,0.00024324,2]
[424973944,1781364655000,-351.714565,0.00024658,2]
[424973952,1781364655000,-351.714565,0.00024658,2]
[424973947,1781364655000,-1034.48974,0.00024658,2]
[424973953,1781364655000,-1034.48974,0.00024658,2]
[424973946,1781364655000,-351.714565,0.00024658,2]
[424973950,1781364655000,-351.714565,0.00024658,2]
[424973949,1781364655000,-1034.48974,0.00024658,2]
[424973951,1781364655000,-1034.48974,0.00024658,2]
[424973948,1781364655000,-351.714565,0.00024658,2]
[424973954,1781364655000,-1034.48974,0.00024658,2]
[424973945,1781364655000,-1034.48974,0.00024658,2]
[424973955,1781364655000,-1034.48974,0.00024658,2]
[424973957,1781364655000,-352.115069,0.00024658,2]
[424973959,1781364655000,-352.115069,0.00024658,2]
[424973962,1781364655000,-500.0,0.00024685,2]
[424973958,1781364655000,-352.115069,0.00024658,2]
[424973961,1781364655000,-152.65923931,0.00024658,2]
[424973964,1781364655000,-225.18697532,0.00024794,2]
[424973963,1781364655000,-867.54,0.0002472,7]
[424973966,1781364655000,-599.60298507,0.00024795,2]
[424973965,1781364655000,-151.0,0.00024795,2]
[424973920,1781364655000,-168.56113,0.00024324,2]
[424973956,1781364655000,-352.115069,0.00024658,2]
[424973942,1781364655000,-351.714565,0.00024658,2]
[424973960,1781364655000,-151.39143128,0.00024658,2]
[424973937,1781364655000,-493.169011,0.00024658,2]
[424973938,1781364655000,-493.169011,0.00024658,2]
[424973916,1781364655000,-151.0,0.00024324,2]
[424973917,1781364655000,-168.56113,0.00024324,2]
[424973923,1781364655000,-817.38,0.00024658,2]
[424973921,1781364655000,-501.0,0.00024341,7]
[424973967,1781364655000,-747.80937859,0.00024795,2]
[424973925,1781364655000,-170.212458,0.00024658,2]
[424973930,1781364655000,-170.212458,0.00024658,2]
[424973928,1781364655000,-170.212458,0.00024658,2]
[424973926,1781364655000,-170.212458,0.00024658,2]
[424973929,1781364655000,-170.212458,0.00024658,2]
[424973924,1781364655000,-170.212458,0.00024658,2]
[424973932,1781364655000,-493.169011,0.00024658,2]
[424973927,1781364655000,-170.212458,0.00024658,2]
[424973943,1781364655000,-1034.48974,0.00024658,2]
[424973936,1781364655000,-493.169011,0.00024658,2]
[424973940,1781364655000,-351.714565,0.00024658,2]
[424973939,1781364655000,-493.169011,0.00024658,2]
[424973941,1781364655000,-351.714565,0.00024658,2]
[424973931,1781364655000,-170.212458,0.00024658,2]
[424973935,1781364655000,-493.169011,0.00024658,2]
[424973934,1781364655000,-493.169011,0.00024658,2]
[424973933,1781364655000,-493.169011,0.00024658,2]
[424973989,1781364656000,-247.68252316,0.00025062,7]
[424973987,1781364656000,-363.673382,0.00025,2]
[424973988,1781364656000,-501.0,0.00025045,8]
[424973990,1781364656000,-186.85282492,0.00025062,7]
[424973992,1781364656000,-2000.0,0.00025218,2]
[424973995,1781364656000,-284.01862642,0.00025344,2]
[424973991,1781364656000,-2000.0,0.00025218,2]
[424973999,1781364656000,-260.4103811,0.00025344,2]
[424973996,1781364656000,-151.0,0.00025344,2]
[424973997,1781364656000,-151.0,0.00025344,2]
[424973994,1781364656000,-639.26,0.000253,7]
[424974000,1781364656000,-152.0,0.00025346,4]
[424973998,1781364656000,-260.4103811,0.00025344,2]
[424973986,1781364656000,-1860.43888566,0.00025,2]
[424974001,1781364656000,-150.0,0.00025373,2]
[424973993,1781364656000,-904.0,0.00025218,2]
[424973985,1781364656000,-393.29825713,0.00025,2]
[424973981,1781364656000,-2698.0,0.00025,2]
[424973982,1781364656000,-469.36885265,0.00025,2]
[424974002,1781364656000,-369.53,0.00025644,2]
[424973968,1781364656000,-284.01862642,0.00024796,2]
[424973969,1781364656000,-151.0,0.00024796,2]
[424973970,1781364656000,-151.0,0.00024796,2]
[424973971,1781364656000,-251.11897888,0.00024796,2]
[424973973,1781364656000,-160.13511033,0.00024796,2]
[424973977,1781364656000,-231.42217344,0.00025,2]
[424973974,1781364656000,-6206.9,0.00024997,7]
[424973975,1781364656000,-1358.33504513,0.00025,4]
[424973972,1781364656000,-251.11897888,0.00024796,2]
[424973976,1781364656000,-758.2500112,0.00025,2]
[424973978,1781364656000,-439.15480245,0.00025,2]
[424973979,1781364656000,-360.43540886,0.00025,2]
[424973980,1781364656000,-1267.15511238,0.00025,2]
[424973983,1781364656000,-302.79278831,0.00025,2]
[424973984,1781364656000,-1048.83864346,0.00025,2]
[424974003,1781364656000,-1157.771403,0.00025644,2]
[424974011,1781364656000,-501.0,0.0002575,9]
[424974034,1781364656000,-284.01862642,0.0002644,2]
[424974026,1781364656000,-826.0,0.000261,2]
[424974025,1781364656000,-8253.0,0.000261,2]
[424974029,1781364656000,-1275.0,0.0002639,2]
[424974031,1781364656000,-1228.0,0.0002639,2]
[424974033,1781364656000,-3644.0,0.0002639,2]
[424974032,1781364656000,-1359.0,0.0002639,2]
[424974035,1781364656000,-151.0,0.0002644,2]
[424974030,1781364656000,-383.0,0.0002639,2]
[424974038,1781364656000,-354.16805249,0.00026479,2]
[424974036,1781364656000,-280.03725111,0.0002644,2]
[424974039,1781364656000,-1190.8030448,0.000265,30]
[424974037,1781364656000,-501.0,0.00026455,9]
[424974041,1781364656000,-2000.0,0.00026588,2]
[424974040,1781364656000,-2000.0,0.00026588,2]
[424974006,1781364656000,-1157.771403,0.00025644,2]
[424974024,1781364656000,-152.65923931,0.00026027,2]
[424974027,1781364656000,-233.5188934,0.00026163,2]
[424974028,1781364656000,-1552.4,0.00026296,2]
[424974023,1781364656000,-160.23828954,0.00026027,3]
[424974004,1781364656000,-1157.771403,0.00025644,2]
[424974005,1781364656000,-1157.771403,0.00025644,2]
[424974007,1781364656000,-1157.771403,0.00025644,2]
[424974008,1781364656000,-1157.771403,0.00025644,2]
[424974022,1781364656000,-550.0,0.00026,2]
[424974009,1781364656000,-1157.771403,0.00025644,2]
[424974013,1781364656000,-674.01,0.00025786,2]
[424974017,1781364656000,-284.01862642,0.00025892,2]
[424974010,1781364656000,-1157.771403,0.00025644,2]
[424974015,1781364656000,-10210.83,0.00025786,2]
[424974018,1781364656000,-151.0,0.00025892,2]
[424974019,1781364656000,-152.80013625,0.00025892,2]
[424974012,1781364656000,-194.37248128,0.00025753,2]
[424974014,1781364656000,-1233.63,0.00025786,2]
[424974016,1781364656000,-361.0,0.00025867,2]
[424974021,1781364656000,-418.52236093,0.00025892,2]
[424974020,1781364656000,-270.0455652,0.00025892,2]
[424974076,1781364657000,-500.0,0.00026981,2]
[424974074,1781364657000,-500.0,0.00026981,2]
[424974080,1781364657000,-200.0,0.00026981,2]
[424974075,1781364657000,-500.0,0.00026981,2]
[424974072,1781364657000,-500.0,0.00026981,2]
[424974071,1781364657000,-500.0,0.00026981,2]
[424974070,1781364657000,-500.0,0.00026981,2]
[424974073,1781364657000,-500.0,0.00026981,2]
[424974062,1781364657000,-500.0,0.00026981,2]
[424974079,1781364657000,-500.0,0.00026981,2]
[424974081,1781364657000,-200.0,0.00026981,2]
[424974092,1781364657000,-200.0,0.00026981,2]
[424974077,1781364657000,-500.0,0.00026981,2]
[424974083,1781364657000,-200.0,0.00026981,2]
[424974093,1781364657000,-200.0,0.00026981,2]
[424974085,1781364657000,-200.0,0.00026981,2]
[424974094,1781364657000,-200.0,0.00026981,2]
[424974082,1781364657000,-200.0,0.00026981,2]
[424974084,1781364657000,-200.0,0.00026981,2]
[424974091,1781364657000,-200.0,0.00026981,2]
[424974087,1781364657000,-200.0,0.00026981,2]
[424974086,1781364657000,-200.0,0.00026981,2]
[424974068,1781364657000,-500.0,0.00026981,2]
[424974078,1781364657000,-500.0,0.00026981,2]
[424974065,1781364657000,-500.0,0.00026981,2]
[424974048,1781364657000,-251.0,0.00026769,10]
[424974066,1781364657000,-500.0,0.00026981,2]
[424974042,1781364657000,-904.0,0.00026588,2]
[424974043,1781364657000,-150.0,0.00026641,2]
[424974044,1781364657000,-6206.9,0.00026662,7]
[424974045,1781364657000,-250.0,0.0002668,2]
[424974046,1781364657000,-250.0,0.0002668,2]
[424974047,1781364657000,-283.68375276,0.0002668,2]
[424974051,1781364657000,-200.0,0.00026958,2]
[424974052,1781364657000,-250.0,0.0002697,2]
[424974053,1781364657000,-250.0,0.0002697,2]
[424974049,1781364657000,-151.43772562,0.00026838,2]
[424974063,1781364657000,-500.0,0.00026981,2]
[424974056,1781364657000,-250.0,0.0002697,2]
[424974054,1781364657000,-250.0,0.0002697,2]
[424974055,1781364657000,-250.0,0.0002697,2]
[424974057,1781364657000,-250.0,0.0002697,2]
[424974058,1781364657000,-250.0,0.0002697,2]
[424974060,1781364657000,-500.0,0.00026981,2]
[424974059,1781364657000,-250.0,0.0002697,2]
[424974064,1781364657000,-500.0,0.00026981,2]
[424974061,1781364657000,-500.0,0.00026981,2]
[424974067,1781364657000,-500.0,0.00026981,2]
[424974069,1781364657000,-500.0,0.00026981,2]
[424974050,1781364657000,-639.26,0.000269,7]
[424974090,1781364657000,-200.0,0.00026981,2]
[424974124,1781364657000,-500.0,0.00026981,2]
[424974089,1781364657000,-200.0,0.00026981,2]
[424974121,1781364657000,-500.0,0.00026981,2]
[424974123,1781364657000,-500.0,0.00026981,2]
[424974126,1781364657000,-500.0,0.00026981,2]
[424974127,1781364657000,-500.0,0.00026981,2]
[424974129,1781364657000,-500.0,0.00026981,2]
[424974130,1781364657000,-500.0,0.00026981,2]
[424974128,1781364657000,-500.0,0.00026981,2]
[424974125,1781364657000,-500.0,0.00026981,2]
[424974131,1781364657000,-500.0,0.00026981,2]
[424974141,1781364657000,-250.0,0.0002726,2]
[424974132,1781364657000,-500.0,0.00026981,2]
[424974139,1781364657000,-290.3986294,0.00026988,2]
[424974138,1781364657000,-151.0,0.00026988,2]
[424974135,1781364657000,-500.0,0.00026981,2]
[424974133,1781364657000,-445.0,0.00026981,2]
[424974134,1781364657000,-500.0,0.00026981,2]
[424974136,1781364657000,-460.0,0.00026981,2]
[424974137,1781364657000,-284.01862642,0.00026988,2]
[424974140,1781364657000,-501.0,0.00027159,10]
[424974144,1781364657000,-250.0,0.0002726,2]
[424974143,1781364657000,-250.0,0.0002726,2]
[424974142,1781364657000,-250.0,0.0002726,2]
[424974088,1781364657000,-200.0,0.00026981,2]
[424974120,1781364657000,-500.0,0.00026981,2]
[424974122,1781364657000,-500.0,0.00026981,2]
[424974145,1781364657000,-250.0,0.0002726,2]
[424974118,1781364657000,-500.0,0.00026981,2]
[424974119,1781364657000,-500.0,0.00026981,2]
[424974101,1781364657000,-200.0,0.00026981,2]
[424974099,1781364657000,-200.0,0.00026981,2]
[424974097,1781364657000,-200.0,0.00026981,2]
[424974103,1781364657000,-200.0,0.00026981,2]
[424974098,1781364657000,-200.0,0.00026981,2]
[424974096,1781364657000,-200.0,0.00026981,2]
[424974105,1781364657000,-200.0,0.00026981,2]
[424974100,1781364657000,-200.0,0.00026981,2]
[424974102,1781364657000,-200.0,0.00026981,2]
[424974104,1781364657000,-200.0,0.00026981,2]
[424974106,1781364657000,-200.0,0.00026981,2]
[424974095,1781364657000,-200.0,0.00026981,2]
[424974116,1781364657000,-200.0,0.00026981,2]
[424974117,1781364657000,-169.0,0.00026981,2]
[424974107,1781364657000,-200.0,0.00026981,2]
[424974109,1781364657000,-200.0,0.00026981,2]
[424974108,1781364657000,-200.0,0.00026981,2]
[424974113,1781364657000,-200.0,0.00026981,2]
[424974114,1781364657000,-200.0,0.00026981,2]
[424974110,1781364657000,-200.0,0.00026981,2]
[424974111,1781364657000,-200.0,0.00026981,2]
[424974112,1781364657000,-200.0,0.00026981,2]
[424974115,1781364657000,-200.0,0.00026981,2]
[424974179,1781364658000,-192.59202553,0.00027299,7]
[424974176,1781364658000,-159.4315778,0.00027299,7]
[424974180,1781364658000,-151.75019016,0.00027299,2]
[424974173,1781364658000,-197.77886054,0.00027299,7]
[424974181,1781364658000,-155.29676333,0.00027299,7]
[424974177,1781364658000,-195.24950824,0.00027299,7]
[424974175,1781364658000,-166.68590885,0.00027299,7]
[424974182,1781364658000,-150.56296667,0.00027299,7]
[424974174,1781364658000,-183.67112081,0.00027299,7]
[424974178,1781364658000,-155.84291392,0.00027299,7]
[424974183,1781364658000,-158.77011384,0.00027299,7]
[424974192,1781364658000,-183.85966407,0.00027371,7]
[424974184,1781364658000,-174.23410272,0.00027299,7]
[424974189,1781364658000,-173.40575878,0.00027299,5]
[424974187,1781364658000,-150.54362776,0.00027299,7]
[424974193,1781364658000,-164.66419862,0.00027371,7]
[424974188,1781364658000,-153.29374548,0.00027299,7]
[424974191,1781364658000,-178.99523582,0.00027371,7]
[424974186,1781364658000,-184.71385623,0.00027299,7]
[424974190,1781364658000,-189.51262308,0.00027371,7]
[424974194,1781364658000,-189.44112595,0.00027371,7]
[424974169,1781364658000,-161.03749456,0.00027299,7]
[424974199,1781364658000,-151.83075045,0.00027371,7]
[424974185,1781364658000,-208.712746,0.00027299,7]
[424974168,1781364658000,-188.00895305,0.00027299,7]
[424974158,1781364658000,-246.14573111,0.00027298,7]
[424974167,1781364658000,-176.81695525,0.00027299,7]
[424974198,1781364658000,-153.77290169,0.00027371,7]
[424974147,1781364658000,-250.0,0.0002726,2]
[424974146,1781364658000,-250.0,0.0002726,2]
[424974149,1781364658000,-2293.0,0.00027284,2]
[424974152,1781364658000,-206.43225277,0.00027298,7]
[424974148,1781364658000,-2272.0,0.00027284,2]
[424974150,1781364658000,-163.27383755,0.00027289,7]
[424974151,1781364658000,-210.6078867,0.00027289,7]
[424974154,1781364658000,-192.2845714,0.00027298,7]
[424974153,1781364658000,-187.73409548,0.00027298,7]
[424974160,1781364658000,-271.90148043,0.00027298,7]
[424974157,1781364658000,-164.41049437,0.00027298,7]
[424974156,1781364658000,-151.59364647,0.00027298,7]
[424974162,1781364658000,-162.32432626,0.00027298,7]
[424974159,1781364658000,-199.80833414,0.00027298,7]
[424974161,1781364658000,-153.1426047,0.00027298,7]
[424974155,1781364658000,-182.51248918,0.00027298,7]
[424974164,1781364658000,-174.51834472,0.00027298,7]
[424974163,1781364658000,-188.08584784,0.00027298,7]
[424974171,1781364658000,-187.55988859,0.00027299,7]
[424974170,1781364658000,-174.17889926,0.00027299,7]
[424974166,1781364658000,-153.37271356,0.00027299,7]
[424974172,1781364658000,-199.40733071,0.00027299,7]
[424974165,1781364658000,-207.04913075,0.00027298,7]
[424974197,1781364658000,-154.26118859,0.00027371,7]
[424974200,1781364658000,-207.91854283,0.00027371,7]
[424974203,1781364658000,-429.79771381,0.00027397,2]
[424974237,1781364658000,-151.0,0.00027397,2]
[424974231,1781364658000,-1000.0,0.00027397,20]
[424974230,1781364658000,-1500.0,0.00027397,2]
[424974229,1781364658000,-150.0,0.00027397,2]
[424974228,1781364658000,-326.09581056,0.00027397,2]
[424974236,1781364658000,-151.0,0.00027397,2]
[424974238,1781364658000,-151.0,0.00027397,2]
[424974235,1781364658000,-151.0,0.00027397,2]
[424974232,1781364658000,-1472.44,0.00027397,2]
[424974233,1781364658000,-817.38,0.00027397,2]
[424974234,1781364658000,-151.0,0.00027397,2]
[424974246,1781364658000,-1229.414061,0.00027397,2]
[424974245,1781364658000,-300.0,0.00027397,2]
[424974244,1781364658000,-1229.414061,0.00027397,2]
[424974247,1781364658000,-1229.414061,0.00027397,2]
[424974242,1781364658000,-1229.414061,0.00027397,2]
[424974240,1781364658000,-151.000007,0.00027397,2]
[424974239,1781364658000,-151.0,0.00027397,2]
[424974248,1781364658000,-1229.414061,0.00027397,2]
[424974241,1781364658000,-1229.414061,0.00027397,2]
[424974243,1781364658000,-1229.414061,0.00027397,2]
[424974249,1781364658000,-1229.414061,0.00027397,2]
[424974251,1781364658000,-151.0,0.00027397,2]
[424974226,1781364658000,-500.0,0.00027397,2]
[424974225,1781364658000,-500.0,0.00027397,2]
[424974250,1781364658000,-151.0,0.00027397,2]
[424974224,1781364658000,-500.0,0.00027397,2]
[424974227,1781364658000,-500.0,0.00027397,2]
[424974196,1781364658000,-191.75244825,0.00027371,7]
[424974201,1781364658000,-185.17597994,0.00027371,7]
[424974204,1781364658000,-511.10642857,0.00027397,2]
[424974202,1781364658000,-152.65923931,0.00027396,2]
[424974206,1781364658000,-500.0,0.00027397,2]
[424974216,1781364658000,-500.0,0.00027397,2]
[424974205,1781364658000,-500.0,0.00027397,2]
[424974213,1781364658000,-500.0,0.00027397,2]
[424974208,1781364658000,-352.36890383,0.00027397,2]
[424974210,1781364658000,-500.0,0.00027397,2]
[424974209,1781364658000,-500.0,0.00027397,2]
[424974195,1781364658000,-164.71412519,0.00027371,7]
[424974207,1781364658000,-500.0,0.00027397,2]
[424974215,1781364658000,-500.0,0.00027397,2]
[424974212,1781364658000,-500.0,0.00027397,2]
[424974214,1781364658000,-500.0,0.00027397,2]
[424974217,1781364658000,-500.0,0.00027397,2]
[424974219,1781364658000,-500.0,0.00027397,2]
[424974218,1781364658000,-500.0,0.00027397,2]
[424974221,1781364658000,-500.0,0.00027397,2]
[424974223,1781364658000,-500.0,0.00027397,2]
[424974222,1781364658000,-500.0,0.00027397,2]
[424974220,1781364658000,-500.0,0.00027397,2]
[424974211,1781364658000,-500.0,0.00027397,2]
[424974288,1781364659000,-357.3025227,0.00027397,2]
[424974286,1781364659000,-1429.21009086,0.00027397,2]
[424974283,1781364659000,-1484.74580488,0.00027397,3]
[424974280,1781364659000,-310.0873466,0.00027397,2]
[424974281,1781364659000,-186.80700053,0.00027397,2]
[424974282,1781364659000,-1979.66107318,0.00027397,2]
[424974284,1781364659000,-868.39159364,0.00027397,2]
[424974279,1781364659000,-176.38058839,0.00027397,7]
[424974285,1781364659000,-578.92772909,0.00027397,3]
[424974287,1781364659000,-1071.90756815,0.00027397,3]
[424974292,1781364659000,-277.64903455,0.00027397,3]
[424974289,1781364659000,-3701.9871273,0.00027397,2]
[424974293,1781364659000,-155.66393733,0.00027397,2]
[424974291,1781364659000,-647.84774727,0.00027397,2]
[424974298,1781364659000,-365.60894636,0.00027397,2]
[424974297,1781364659000,-465.91484616,0.00027397,2]
[424974295,1781364659000,-1215.4389429,0.00027397,2]
[424974296,1781364659000,-911.57920718,0.00027397,3]
[424974294,1781364659000,-205.14941857,0.00027397,2]
[424974277,1781364659000,-603.76714756,0.00027397,2]
[424974300,1781364659000,-908.7,0.000274,7]
[424974290,1781364659000,-2776.49034548,0.00027397,3]
[424974276,1781364659000,-175.308347,0.00027397,7]
[424974263,1781364659000,-162.032497,0.00027397,2]
[424974274,1781364659000,-422.046273,0.00027397,2]
[424974302,1781364659000,-500.0,0.000275,7]
[424974258,1781364659000,-1598.331557,0.00027397,2]
[424974252,1781364659000,-235.84002,0.00027397,2]
[424974256,1781364659000,-1598.331557,0.00027397,2]
[424974253,1781364659000,-1598.331557,0.00027397,2]
[424974254,1781364659000,-1598.331557,0.00027397,2]
[424974255,1781364659000,-1598.331557,0.00027397,2]
[424974257,1781364659000,-1598.331557,0.00027397,2]
[424974259,1781364659000,-1598.331557,0.00027397,2]
[424974260,1781364659000,-1598.331557,0.00027397,2]
[424974273,1781364659000,-422.046273,0.00027397,2]
[424974261,1781364659000,-162.032497,0.00027397,2]
[424974264,1781364659000,-162.032497,0.00027397,2]
[424974262,1781364659000,-162.032497,0.00027397,2]
[424974265,1781364659000,-162.032497,0.00027397,2]
[424974269,1781364659000,-1023.9,0.00027397,2]
[424974271,1781364659000,-422.046273,0.00027397,2]
[424974272,1781364659000,-422.046273,0.00027397,2]
[424974268,1781364659000,-162.032497,0.00027397,2]
[424974270,1781364659000,-23965.97,0.00027397,10]
[424974278,1781364659000,-1000.0,0.00027397,30]
[424974275,1781364659000,-183.48638233,0.00027397,7]
[424974266,1781364659000,-162.032497,0.00027397,2]
[424974309,1781364659000,-775.4783256,0.00027534,2]
[424974267,1781364659000,-162.032497,0.00027397,2]
[424974301,1781364659000,-867.54,0.0002744,7]
[424974331,1781364659000,-481.0,0.00027591,2]
[424974330,1781364659000,-472.96,0.0002758,7]
[424974332,1781364659000,-152.0,0.00027592,5]
[424974335,1781364659000,-473.13,0.00027611,30]
[424974336,1781364659000,-472.96,0.00027611,30]
[424974334,1781364659000,-908.7,0.000276,7]
[424974337,1781364659000,-473.13,0.00027641,2]
[424974338,1781364659000,-472.96,0.00027641,2]
[424974333,1781364659000,-511.10642857,0.00027593,2]
[424974340,1781364659000,-472.96,0.00027672,7]
[424974329,1781364659000,-473.13,0.0002758,7]
[424974349,1781364659000,-473.13,0.00027733,2]
[424974348,1781364659000,-1665.73,0.00027732,2]
[424974339,1781364659000,-473.13,0.00027672,7]
[424974344,1781364659000,-914.93,0.00027711,7]
[424974346,1781364659000,-6907.24,0.00027711,7]
[424974342,1781364659000,-472.96,0.00027702,30]
[424974343,1781364659000,-6938.42,0.00027711,7]
[424974341,1781364659000,-473.13,0.00027702,30]
[424974345,1781364659000,-913.83,0.00027711,7]
[424974350,1781364659000,-472.96,0.00027733,2]